[Event "Early-Titled-Tuesday-Blitz-February-27-2024"]
[Site "Chess.com"]
[Date "2024.02.27"]
[Round "2"]
[White "GHANDEEVAM2003"]
[Black "AcostaPablo"]
[Result "1-0"]
[WhiteElo "3018"]
[BlackElo "2633"]
[TimeControl "180+1"]
[EndTime "8:16:17 PST"]
[Termination "GHANDEEVAM2003 won by resignation"]

1. a3 {[%clk 0:03:00.9]} 1... Nf6 {[%clk 0:02:43.3]} 2. c4 {[%clk 0:02:58.7]}
2... g6 {[%clk 0:02:43.8]} 3. Nc3 {[%clk 0:02:56.5]} 3... Bg7 {[%clk 0:02:44.5]}
4. e4 {[%clk 0:02:56.8]} 4... d6 {[%clk 0:02:44.4]} 5. d4 {[%clk 0:02:56.8]}
5... O-O {[%clk 0:02:45]} 6. Nf3 {[%clk 0:02:55]} 6... c5 {[%clk 0:02:44.8]} 7.
d5 {[%clk 0:02:52.6]} 7... Bg4 {[%clk 0:02:42.5]} 8. Be2 {[%clk 0:02:46]} 8...
Nbd7 {[%clk 0:02:40.5]} 9. O-O {[%clk 0:02:46.5]} 9... a6 {[%clk 0:02:37.3]} 10.
h3 {[%clk 0:02:44.3]} 10... Bxf3 {[%clk 0:02:36.8]} 11. Bxf3 {[%clk 0:02:45.2]}
11... Rb8 {[%clk 0:02:37.3]} 12. Be2 {[%clk 0:02:44.7]} 12... Ne8 {[%clk
0:02:29.2]} 13. Be3 {[%clk 0:02:36.9]} 13... Nc7 {[%clk 0:02:28.9]} 14. a4
{[%clk 0:02:36.6]} 14... b6 {[%clk 0:02:14.4]} 15. Qd2 {[%clk 0:02:35.3]} 15...
Re8 {[%clk 0:02:01.5]} 16. h4 {[%clk 0:02:28.4]} 16... e6 {[%clk 0:01:56.2]} 17.
h5 {[%clk 0:02:28.4]} 17... exd5 {[%clk 0:01:55.6]} 18. exd5 {[%clk 0:02:28.7]}
18... Qf6 {[%clk 0:01:48.8]} 19. h6 {[%clk 0:02:26.6]} 19... Bf8 {[%clk
0:01:49]} 20. g3 {[%clk 0:02:16.6]} 20... Ne5 {[%clk 0:01:23.5]} 21. Kg2 {[%clk
0:02:16.7]} 21... Qf5 {[%clk 0:01:21.5]} 22. f3 {[%clk 0:02:12.8]} 22... Re7
{[%clk 0:01:10.1]} 23. Ne4 {[%clk 0:02:10]} 23... Ng4 {[%clk 0:01:02.7]} 24. Bg5
{[%clk 0:02:02]} 24... Rxe4 {[%clk 0:00:52.5]} 25. fxe4 {[%clk 0:02:02.9]} 25...
Qxe4+ {[%clk 0:00:53.1]} 26. Bf3 {[%clk 0:02:03.4]} 26... Qf5 {[%clk 0:00:47.3]}
27. Rae1 {[%clk 0:01:43.6]} 27... Ne5 {[%clk 0:00:43.9]} 28. Bd1 {[%clk
0:01:43.8]} 28... Qd7 {[%clk 0:00:40.4]} 29. b3 {[%clk 0:01:42.9]} 29... f5
{[%clk 0:00:38.4]} 30. Bf6 {[%clk 0:01:41.4]} 30... Nf7 {[%clk 0:00:35.8]} 31.
Rh1 {[%clk 0:01:38.3]} 31... b5 {[%clk 0:00:33.9]} 32. Ba1 {[%clk 0:01:38.1]}
32... bxc4 {[%clk 0:00:32.6]} 33. bxc4 {[%clk 0:01:39]} 33... Rb4 {[%clk
0:00:26.2]} 34. Qc3 {[%clk 0:01:37.7]} 34... Qd8 {[%clk 0:00:17.3]} 35. Bb2
{[%clk 0:01:21.6]} 35... Qg5 {[%clk 0:00:17.3]} 36. Bc1 {[%clk 0:01:21.8]} 36...
Qd8 {[%clk 0:00:16.6]} 37. Bf4 {[%clk 0:01:20.2]} 37... Ne8 {[%clk 0:00:16.4]}
38. Re6 {[%clk 0:01:19.2]} 38... Nf6 {[%clk 0:00:16.6]} 39. Rxf6 {[%clk
0:01:18]} 1-0

[Event "Early-Titled-Tuesday-Blitz-February-27-2024"]
[Site "Chess.com"]
[Date "2024.02.27"]
[Round "2"]
[White "maurovargas01"]
[Black "AlainBruxelles"]
[Result "0-1"]
[WhiteElo "1875"]
[BlackElo "2439"]
[TimeControl "180+1"]
[EndTime "8:16:17 PST"]
[Termination "AlainBruxelles won on time"]

1. e4 {[%clk 0:02:47.6]} 1... c5 {[%clk 0:02:58.7]} 2. Nc3 {[%clk 0:02:46.9]}
2... Nc6 {[%clk 0:02:57.6]} 3. f4 {[%clk 0:02:47.8]} 3... g6 {[%clk 0:02:55.9]}
4. Nf3 {[%clk 0:02:47.1]} 4... Bg7 {[%clk 0:02:56]} 5. Bb5 {[%clk 0:02:46.6]}
5... Nd4 {[%clk 0:02:50.6]} 6. Bc4 {[%clk 0:02:43.2]} 6... e6 {[%clk 0:02:50.8]}
7. a4 {[%clk 0:02:41.5]} 7... Ne7 {[%clk 0:02:49.9]} 8. d3 {[%clk 0:02:39.9]}
8... Nec6 {[%clk 0:02:48.9]} 9. e5 {[%clk 0:02:32.4]} 9... d6 {[%clk 0:02:46.2]}
10. exd6 {[%clk 0:02:28.3]} 10... Qxd6 {[%clk 0:02:45]} 11. Ne4 {[%clk
0:02:27.9]} 11... Qe7 {[%clk 0:02:43.1]} 12. c3 {[%clk 0:02:27.8]} 12... Nxf3+
{[%clk 0:02:37.9]} 13. Qxf3 {[%clk 0:02:26.8]} 13... O-O {[%clk 0:02:37.8]} 14.
O-O {[%clk 0:02:25.2]} 14... e5 {[%clk 0:02:37.8]} 15. fxe5 {[%clk 0:01:58.4]}
15... Nxe5 {[%clk 0:02:35.6]} 16. Qe3 {[%clk 0:01:34.9]} 16... Nxc4 {[%clk
0:02:26.4]} 17. dxc4 {[%clk 0:01:31.5]} 17... f5 {[%clk 0:02:25.2]} 18. Nxc5
{[%clk 0:01:24.3]} 18... Qxe3+ {[%clk 0:02:18.5]} 19. Bxe3 {[%clk 0:01:23.5]}
19... b6 {[%clk 0:02:18.6]} 20. Nd3 {[%clk 0:01:08]} 20... Bb7 {[%clk
0:02:12.7]} 21. Nf4 {[%clk 0:01:04]} 21... Rad8 {[%clk 0:02:04.7]} 22. Ne6
{[%clk 0:01:00.3]} 22... Rd3 {[%clk 0:02:00.7]} 23. Nxf8 {[%clk 0:00:54.6]}
23... Rxe3 {[%clk 0:02:00.5]} 24. Nd7 {[%clk 0:00:49.2]} 24... Bh6 {[%clk
0:01:57]} 25. Nf6+ {[%clk 0:00:39.4]} 25... Kf7 {[%clk 0:01:55.6]} 26. Nd5
{[%clk 0:00:39.2]} 26... Re4 {[%clk 0:01:49.8]} 27. b3 {[%clk 0:00:34.5]} 27...
Bf8 {[%clk 0:01:44.1]} 28. Rae1 {[%clk 0:00:31.7]} 28... Rg4 {[%clk 0:01:43]}
29. h3 {[%clk 0:00:28.3]} 29... Bc5+ {[%clk 0:01:33.5]} 30. Kh2 {[%clk
0:00:25.8]} 30... Bd6+ {[%clk 0:01:32.6]} 31. Kh1 {[%clk 0:00:23.5]} 31... Rg3
{[%clk 0:01:31.3]} 32. Re3 {[%clk 0:00:14]} 32... Rg5 {[%clk 0:01:29.6]} 33.
Rfe1 {[%clk 0:00:07.8]} 33... Bc8 {[%clk 0:01:12.7]} 0-1

[Event "Early-Titled-Tuesday-Blitz-February-27-2024"]
[Site "Chess.com"]
[Date "2024.02.27"]
[Round "2"]
[White "Yan_Dyomin2010"]
[Black "YoreDea"]
[Result "1-0"]
[WhiteElo "2758"]
[BlackElo "2525"]
[TimeControl "180+1"]
[EndTime "8:16:18 PST"]
[Termination "Yan_Dyomin2010 won by checkmate"]

1. e4 {[%clk 0:03:00.9]} 1... e6 {[%clk 0:02:59.7]} 2. d4 {[%clk 0:03:00.1]}
2... d5 {[%clk 0:03:00.1]} 3. e5 {[%clk 0:03:00.8]} 3... c5 {[%clk 0:03:00.2]}
4. c3 {[%clk 0:03:00.6]} 4... Nc6 {[%clk 0:03:00.2]} 5. Nf3 {[%clk 0:03:00]}
5... Nge7 {[%clk 0:02:59.9]} 6. Na3 {[%clk 0:02:58]} 6... Nf5 {[%clk 0:02:56.3]}
7. Nc2 {[%clk 0:02:56.5]} 7... Qa5 {[%clk 0:02:55.4]} 8. dxc5 {[%clk 0:02:50.8]}
8... Qxc5 {[%clk 0:02:51.6]} 9. Bd3 {[%clk 0:02:48.8]} 9... Be7 {[%clk
0:02:47.2]} 10. Bxf5 {[%clk 0:02:45.2]} 10... exf5 {[%clk 0:02:47.1]} 11. O-O
{[%clk 0:02:45.1]} 11... Be6 {[%clk 0:02:46.5]} 12. Re1 {[%clk 0:02:44.7]} 12...
h6 {[%clk 0:02:45.2]} 13. Nfd4 {[%clk 0:02:32.2]} 13... O-O {[%clk 0:02:36.3]}
14. Be3 {[%clk 0:02:27.6]} 14... Qa5 {[%clk 0:02:33.3]} 15. Bf4 {[%clk
0:02:01.5]} 15... g5 {[%clk 0:02:29.2]} 16. Bc1 {[%clk 0:02:00.7]} 16... Qd8
{[%clk 0:02:12.9]} 17. f4 {[%clk 0:01:49.9]} 17... g4 {[%clk 0:02:10.4]} 18. Be3
{[%clk 0:01:48.1]} 18... Qd7 {[%clk 0:02:08.4]} 19. Qd2 {[%clk 0:01:44.9]} 19...
Rfc8 {[%clk 0:02:08.1]} 20. Bf2 {[%clk 0:01:42.3]} 20... a6 {[%clk 0:02:07.8]}
21. Re3 {[%clk 0:01:38.2]} 21... h5 {[%clk 0:02:06.3]} 22. Qe1 {[%clk
0:01:37.7]} 22... b5 {[%clk 0:02:04.8]} 23. Bh4 {[%clk 0:01:36.9]} 23... Bf8
{[%clk 0:02:04.8]} 24. Bf6 {[%clk 0:01:35.9]} 24... Bh6 {[%clk 0:01:56.3]} 25.
Qh4 {[%clk 0:01:28.2]} 25... Kh7 {[%clk 0:01:40.3]} 26. Bg5 {[%clk 0:01:25.6]}
26... Rg8 {[%clk 0:01:39.3]} 27. Qxh5 {[%clk 0:01:24]} 27... Rg6 {[%clk
0:01:39.2]} 28. Nxc6 {[%clk 0:01:23.1]} 28... Qxc6 {[%clk 0:01:38.5]} 29. Nd4
{[%clk 0:01:23.7]} 29... Qd7 {[%clk 0:01:32.9]} 30. h3 {[%clk 0:01:17.6]} 30...
gxh3 {[%clk 0:01:22.2]} 31. Rxh3 {[%clk 0:01:16.8]} 31... Rh8 {[%clk 0:01:22.5]}
32. Qxh6+ {[%clk 0:01:10.5]} 32... Rxh6 {[%clk 0:01:21.3]} 33. Rxh6+ {[%clk
0:01:11.4]} 33... Kg8 {[%clk 0:01:21]} 34. Rxh8+ {[%clk 0:01:10.9]} 34... Kxh8
{[%clk 0:01:21.1]} 35. Kf2 {[%clk 0:01:06.7]} 35... b4 {[%clk 0:01:17.4]} 36.
Rh1+ {[%clk 0:00:55.3]} 36... Kg7 {[%clk 0:01:16.6]} 37. Bf6+ {[%clk 0:00:55.7]}
37... Kg6 {[%clk 0:01:16.6]} 38. Nf3 {[%clk 0:00:50.7]} 38... Qa7+ {[%clk
0:01:13.8]} 39. Ke2 {[%clk 0:00:48.2]} 39... bxc3 {[%clk 0:01:08.8]} 40. Nh4+
{[%clk 0:00:44.5]} 40... Kh5 {[%clk 0:01:08.2]} 41. Kf3 {[%clk 0:00:39.7]} 41...
d4 {[%clk 0:00:57]} 42. Nxf5+ {[%clk 0:00:38.8]} 42... Kg6 {[%clk 0:00:57.1]}
43. Rh6+ {[%clk 0:00:38.6]} 43... Kxf5 {[%clk 0:00:53.4]} 44. g4# {[%clk
0:00:39.2]} 1-0

[Event "Early-Titled-Tuesday-Blitz-February-27-2024"]
[Site "Chess.com"]
[Date "2024.02.27"]
[Round "2"]
[White "Larina_Maria"]
[Black "nickmatta"]
[Result "0-1"]
[WhiteElo "2309"]
[BlackElo "2539"]
[TimeControl "180+1"]
[EndTime "8:16:20 PST"]
[Termination "nickmatta won by checkmate"]

1. e4 {[%clk 0:03:00.9]} 1... c5 {[%clk 0:02:59.7]} 2. Nc3 {[%clk 0:03:00.2]}
2... e6 {[%clk 0:02:57.7]} 3. Nf3 {[%clk 0:02:59.6]} 3... d5 {[%clk 0:02:55.5]}
4. exd5 {[%clk 0:02:59]} 4... exd5 {[%clk 0:02:56.4]} 5. Bb5+ {[%clk 0:02:59.4]}
5... Bd7 {[%clk 0:02:56.4]} 6. Qe2+ {[%clk 0:02:57.8]} 6... Be7 {[%clk
0:02:54.9]} 7. Nxd5 {[%clk 0:02:57.2]} 7... Nc6 {[%clk 0:02:49.7]} 8. Nxe7
{[%clk 0:02:49.6]} 8... Ngxe7 {[%clk 0:02:49.7]} 9. O-O {[%clk 0:02:46.5]} 9...
O-O {[%clk 0:02:49.6]} 10. c3 {[%clk 0:02:38.3]} 10... a6 {[%clk 0:02:44.1]} 11.
Ba4 {[%clk 0:02:37.4]} 11... b5 {[%clk 0:02:42.3]} 12. Bc2 {[%clk 0:02:37.1]}
12... Ng6 {[%clk 0:02:41.2]} 13. d4 {[%clk 0:02:31.5]} 13... cxd4 {[%clk
0:02:39.3]} 14. cxd4 {[%clk 0:02:29.8]} 14... Bg4 {[%clk 0:02:38.3]} 15. Rd1
{[%clk 0:02:18.8]} 15... Re8 {[%clk 0:02:24.6]} 16. Qd3 {[%clk 0:02:14.9]} 16...
Nb4 {[%clk 0:02:17.9]} 17. Qd2 {[%clk 0:02:09.2]} 17... Bxf3 {[%clk 0:02:11.6]}
18. gxf3 {[%clk 0:02:10]} 18... Nxc2 {[%clk 0:02:00]} 19. Qxc2 {[%clk
0:02:10.9]} 19... Nh4 {[%clk 0:01:44.2]} 20. Qd3 {[%clk 0:02:03.6]} 20... Qd5
{[%clk 0:01:44.1]} 21. Be3 {[%clk 0:01:46.4]} 21... Nxf3+ {[%clk 0:01:42.8]} 22.
Kf1 {[%clk 0:01:46.6]} 22... Nxh2+ {[%clk 0:01:39.6]} 23. Ke2 {[%clk 0:01:46.8]}
23... Ng4 {[%clk 0:01:29.7]} 24. Rh1 {[%clk 0:01:45.6]} 24... g6 {[%clk
0:01:16.5]} 25. Rag1 {[%clk 0:01:36.7]} 25... Rac8 {[%clk 0:01:14.8]} 26. Rh4
{[%clk 0:01:24]} 26... Nxe3 {[%clk 0:01:09.4]} 27. fxe3 {[%clk 0:01:24.9]} 27...
Qxa2 {[%clk 0:01:09.7]} 28. Rgh1 {[%clk 0:01:05.6]} 28... Qxb2+ {[%clk
0:01:08.7]} 29. Kf3 {[%clk 0:01:06.3]} 29... Rc3 {[%clk 0:01:04.6]} 30. Rxh7
{[%clk 0:00:45]} 30... Rxd3 {[%clk 0:01:02.4]} 31. Rh8+ {[%clk 0:00:45.4]} 31...
Kg7 {[%clk 0:01:03.1]} 32. Rxe8 {[%clk 0:00:43.7]} 32... Rd2 {[%clk 0:00:53.8]}
33. Rhh8 {[%clk 0:00:43.3]} 33... Rf2+ {[%clk 0:00:53.9]} 34. Ke4 {[%clk
0:00:42.9]} 34... Qc2+ {[%clk 0:00:53.2]} 35. Ke5 {[%clk 0:00:42.6]} 35... Rf5+
{[%clk 0:00:41.4]} 36. Kd6 {[%clk 0:00:41.5]} 36... Rf6+ {[%clk 0:00:42.1]} 37.
Kd7 {[%clk 0:00:38.9]} 37... Qc6+ {[%clk 0:00:40.8]} 38. Kd8 {[%clk 0:00:39.1]}
38... Rd6+ {[%clk 0:00:40.5]} 39. Ke7 {[%clk 0:00:38.8]} 39... Qd7# {[%clk
0:00:38.6]} 0-1

[Event "Early-Titled-Tuesday-Blitz-February-27-2024"]
[Site "Chess.com"]
[Date "2024.02.27"]
[Round "2"]
[White "Hikaru"]
[Black "Ginger_GM"]
[Result "1-0"]
[WhiteElo "3242"]
[BlackElo "2662"]
[TimeControl "180+1"]
[EndTime "8:16:25 PST"]
[Termination "Hikaru won on time"]

1. h4 {[%clk 0:03:00.9]} 1... e5 {[%clk 0:02:54.2]} 2. c4 {[%clk 0:02:59.2]}
2... Nf6 {[%clk 0:02:43]} 3. g3 {[%clk 0:02:49.6]} 3... d5 {[%clk 0:02:41.2]} 4.
cxd5 {[%clk 0:02:49.7]} 4... Qxd5 {[%clk 0:02:39.5]} 5. Nf3 {[%clk 0:02:49.6]}
5... Bb4 {[%clk 0:02:35.3]} 6. a3 {[%clk 0:02:37.5]} 6... e4 {[%clk 0:02:28.4]}
7. Qa4+ {[%clk 0:02:12.5]} 7... Nc6 {[%clk 0:02:22.4]} 8. axb4 {[%clk
0:02:08.7]} 8... exf3 {[%clk 0:02:20.2]} 9. e3 {[%clk 0:02:09.2]} 9... O-O
{[%clk 0:02:14.2]} 10. Nc3 {[%clk 0:02:00.8]} 10... Qf5 {[%clk 0:01:47]} 11. d3
{[%clk 0:01:52.5]} 11... a5 {[%clk 0:01:35.3]} 12. e4 {[%clk 0:01:45]} 12... Qh5
{[%clk 0:01:10.1]} 13. b5 {[%clk 0:01:36.7]} 13... Nb4 {[%clk 0:01:08.3]} 14.
Na2 {[%clk 0:01:36.3]} 14... Ng4 {[%clk 0:00:43.9]} 15. Be3 {[%clk 0:01:02.9]}
15... Nxe3 {[%clk 0:00:42]} 16. fxe3 {[%clk 0:01:03.8]} 16... Qc5 {[%clk
0:00:21]} 17. Kf2 {[%clk 0:01:03]} 17... Nxa2 {[%clk 0:00:14]} 18. Rxa2 {[%clk
0:01:01.8]} 18... Bg4 {[%clk 0:00:14]} 19. Ra1 {[%clk 0:00:54.3]} 19... c6
{[%clk 0:00:11.7]} 20. d4 {[%clk 0:00:53.2]} 20... Qe7 {[%clk 0:00:11.7]} 21.
Bd3 {[%clk 0:00:48.7]} 21... cxb5 {[%clk 0:00:10.1]} 22. Qxb5 {[%clk 0:00:49.6]}
22... Rac8 {[%clk 0:00:08.3]} 23. Qxa5 {[%clk 0:00:45.9]} 23... f5 {[%clk
0:00:05.6]} 24. Rhc1 {[%clk 0:00:37.3]} 24... Rxc1 {[%clk 0:00:04]} 25. Rxc1
{[%clk 0:00:38.2]} 25... fxe4 {[%clk 0:00:04.1]} 26. Qd5+ {[%clk 0:00:38.8]}
26... Kh8 {[%clk 0:00:04]} 27. Qxe4 {[%clk 0:00:39.7]} 27... Qxe4 {[%clk
0:00:01.2]} 28. Bxe4 {[%clk 0:00:40.6]} 1-0

[Event "Early-Titled-Tuesday-Blitz-February-27-2024"]
[Site "Chess.com"]
[Date "2024.02.27"]
[Round "2"]
[White "jefferyx"]
[Black "DumbKing75"]
[Result "1-0"]
[WhiteElo "3055"]
[BlackElo "2643"]
[TimeControl "180+1"]
[EndTime "8:16:26 PST"]
[Termination "jefferyx won on time"]

1. e4 {[%clk 0:02:35.5]} 1... c5 {[%clk 0:02:59.8]} 2. Nf3 {[%clk 0:02:35.3]}
2... d6 {[%clk 0:02:56.6]} 3. Nc3 {[%clk 0:02:34.5]} 3... Nc6 {[%clk 0:02:54.9]}
4. d4 {[%clk 0:02:34.3]} 4... cxd4 {[%clk 0:02:55.8]} 5. Nxd4 {[%clk 0:02:35.2]}
5... Nf6 {[%clk 0:02:55.8]} 6. Bg5 {[%clk 0:02:35.1]} 6... e6 {[%clk 0:02:50.8]}
7. Qd3 {[%clk 0:02:35]} 7... Be7 {[%clk 0:02:49.5]} 8. O-O-O {[%clk 0:02:34.3]}
8... O-O {[%clk 0:02:45.7]} 9. f4 {[%clk 0:02:32.6]} 9... Qb6 {[%clk 0:02:41.8]}
10. Nb3 {[%clk 0:02:14]} 10... Bd7 {[%clk 0:01:59.4]} 11. Be2 {[%clk 0:02:13.4]}
11... Rac8 {[%clk 0:01:51.2]} 12. Kb1 {[%clk 0:02:13.5]} 12... a6 {[%clk
0:01:40.7]} 13. h4 {[%clk 0:01:32.1]} 13... Qc7 {[%clk 0:01:23.7]} 14. e5 {[%clk
0:01:26.9]} 14... Nd5 {[%clk 0:00:56.9]} 15. Nxd5 {[%clk 0:01:25.6]} 15... exd5
{[%clk 0:00:52.8]} 16. Qxd5 {[%clk 0:01:26.5]} 16... Nb4 {[%clk 0:00:18.7]} 17.
Qd2 {[%clk 0:01:22.2]} 17... Bf5 {[%clk 0:00:15.1]} 18. Qxb4 {[%clk 0:01:17.4]}
18... Bxg5 {[%clk 0:00:10.7]} 19. hxg5 {[%clk 0:01:02.9]} 19... Qxc2+ {[%clk
0:00:10.3]} 20. Ka1 {[%clk 0:01:03.5]} 20... Qxe2 {[%clk 0:00:10.5]} 21. Nd4
{[%clk 0:01:04]} 21... Qe4 {[%clk 0:00:07.4]} 22. exd6 {[%clk 0:01:00]} 22...
Bg4 {[%clk 0:00:05.8]} 23. Rde1 {[%clk 0:00:47.8]} 23... Qxf4 {[%clk 0:00:05.7]}
24. Nc6 {[%clk 0:00:46.9]} 24... Qxb4 {[%clk 0:00:02.9]} 25. Ne7+ {[%clk
0:00:45.4]} 25... Kh8 {[%clk 0:00:01.3]} 26. Rxh7+ {[%clk 0:00:46.3]} 26... Kxh7
{[%clk 0:00:02.2]} 27. Rh1+ {[%clk 0:00:47]} 1-0

[Event "Early-Titled-Tuesday-Blitz-February-27-2024"]
[Site "Chess.com"]
[Date "2024.02.27"]
[Round "2"]
[White "toog"]
[Black "LastGladiator1"]
[Result "1-0"]
[WhiteElo "2646"]
[BlackElo "2975"]
[TimeControl "180+1"]
[EndTime "8:16:28 PST"]
[Termination "toog won by checkmate"]

1. d4 {[%clk 0:02:58.9]} 1... Nf6 {[%clk 0:02:56.9]} 2. c4 {[%clk 0:02:52.5]}
2... g6 {[%clk 0:02:56]} 3. Nf3 {[%clk 0:02:51.1]} 3... Bg7 {[%clk 0:02:56.4]}
4. g3 {[%clk 0:02:49]} 4... d6 {[%clk 0:02:56.5]} 5. Bg2 {[%clk 0:02:49.6]} 5...
O-O {[%clk 0:02:54.4]} 6. O-O {[%clk 0:02:49.8]} 6... Bf5 {[%clk 0:02:55.1]} 7.
Nc3 {[%clk 0:02:48.1]} 7... Ne4 {[%clk 0:02:54.9]} 8. Qb3 {[%clk 0:02:47]} 8...
Nxc3 {[%clk 0:02:42.3]} 9. Qxc3 {[%clk 0:02:47.9]} 9... Nc6 {[%clk 0:02:26.2]}
10. Be3 {[%clk 0:02:47]} 10... Be4 {[%clk 0:02:25.4]} 11. Qd2 {[%clk 0:02:47]}
11... e5 {[%clk 0:02:13.8]} 12. dxe5 {[%clk 0:02:35.9]} 12... dxe5 {[%clk
0:02:00.9]} 13. Rad1 {[%clk 0:02:26.5]} 13... Qe7 {[%clk 0:01:55.5]} 14. Qc3
{[%clk 0:01:53.4]} 14... Rfd8 {[%clk 0:01:40.2]} 15. Qc1 {[%clk 0:01:50.9]}
15... Nd4 {[%clk 0:01:28.3]} 16. Nxd4 {[%clk 0:01:43.2]} 16... exd4 {[%clk
0:01:13]} 17. Bg5 {[%clk 0:01:41]} 17... f6 {[%clk 0:01:13.1]} 18. Bh6 {[%clk
0:01:31]} 18... Bxg2 {[%clk 0:01:00.6]} 19. Kxg2 {[%clk 0:01:28.4]} 19... Qe4+
{[%clk 0:01:00.6]} 20. Kg1 {[%clk 0:01:26.6]} 20... Bxh6 {[%clk 0:00:53.1]} 21.
Qxh6 {[%clk 0:01:27.5]} 21... Qxe2 {[%clk 0:00:52.6]} 22. Rfe1 {[%clk
0:01:26.8]} 22... d3 {[%clk 0:00:37.2]} 23. Kg2 {[%clk 0:01:10.6]} 23... Qh5
{[%clk 0:00:23.5]} 24. Qxh5 {[%clk 0:01:09.7]} 24... gxh5 {[%clk 0:00:24.4]} 25.
Re3 {[%clk 0:01:10.4]} 25... Rd4 {[%clk 0:00:12.4]} 26. Rdxd3 {[%clk 0:01:05.6]}
26... Rxc4 {[%clk 0:00:12.4]} 27. Rd7 {[%clk 0:01:04.9]} 27... Rc8 {[%clk
0:00:02.7]} 28. Ree7 {[%clk 0:01:03.9]} 28... h4 {[%clk 0:00:03]} 29. Rg7+
{[%clk 0:01:03.2]} 29... Kf8 {[%clk 0:00:03.2]} 30. Rxh7 {[%clk 0:01:03.6]}
30... Kg8 {[%clk 0:00:03.7]} 31. gxh4 {[%clk 0:01:03.3]} 31... Rg4+ {[%clk
0:00:03.4]} 32. Kf3 {[%clk 0:01:03]} 32... Rb4 {[%clk 0:00:03.8]} 33. h5 {[%clk
0:01:01.2]} 33... Rh4 {[%clk 0:00:03.4]} 34. h6 {[%clk 0:00:59.4]} 34... Kf8
{[%clk 0:00:02]} 35. Rh8# {[%clk 0:00:59.1]} 1-0

[Event "Early-Titled-Tuesday-Blitz-February-27-2024"]
[Site "Chess.com"]
[Date "2024.02.27"]
[Round "2"]
[White "SARGISMV"]
[Black "JAN2404"]
[Result "1-0"]
[WhiteElo "2447"]
[BlackElo "1964"]
[TimeControl "180+1"]
[EndTime "8:16:28 PST"]
[Termination "SARGISMV won by resignation"]

1. d4 {[%clk 0:02:50.6]} 1... Nf6 {[%clk 0:02:57.6]} 2. c4 {[%clk 0:02:49.7]}
2... g6 {[%clk 0:02:55.1]} 3. Nc3 {[%clk 0:02:50.2]} 3... Bg7 {[%clk 0:02:54.7]}
4. e4 {[%clk 0:02:50]} 4... d6 {[%clk 0:02:54.8]} 5. Be2 {[%clk 0:02:49.5]} 5...
O-O {[%clk 0:02:40.3]} 6. Nf3 {[%clk 0:02:48.9]} 6... e5 {[%clk 0:02:37.5]} 7.
O-O {[%clk 0:02:47.9]} 7... Nc6 {[%clk 0:02:38]} 8. d5 {[%clk 0:02:48.1]} 8...
Ne7 {[%clk 0:02:38.1]} 9. Ne1 {[%clk 0:02:48.7]} 9... Nd7 {[%clk 0:02:22.8]} 10.
Nd3 {[%clk 0:02:48.9]} 10... f5 {[%clk 0:02:20.6]} 11. Bd2 {[%clk 0:02:49.2]}
11... Nf6 {[%clk 0:02:16.2]} 12. f3 {[%clk 0:02:49]} 12... f4 {[%clk 0:02:11.8]}
13. c5 {[%clk 0:02:49.4]} 13... g5 {[%clk 0:02:08.9]} 14. cxd6 {[%clk
0:02:49.5]} 14... cxd6 {[%clk 0:02:08.3]} 15. Nf2 {[%clk 0:02:47.6]} 15... Rf7
{[%clk 0:02:00.2]} 16. Qc2 {[%clk 0:02:46.8]} 16... Ng6 {[%clk 0:01:54.6]} 17.
Rfc1 {[%clk 0:02:45.2]} 17... a6 {[%clk 0:01:51.1]} 18. a4 {[%clk 0:02:44.1]}
18... h5 {[%clk 0:01:47]} 19. h3 {[%clk 0:02:43.5]} 19... Nh7 {[%clk 0:01:12.7]}
20. a5 {[%clk 0:02:39.3]} 20... g4 {[%clk 0:01:10.1]} 21. fxg4 {[%clk
0:02:04.9]} 21... hxg4 {[%clk 0:01:08.1]} 22. hxg4 {[%clk 0:02:00.7]} 22... Ng5
{[%clk 0:01:01.1]} 23. Na4 {[%clk 0:01:47.8]} 23... b5 {[%clk 0:00:20]} 24. Nb6
{[%clk 0:01:44.3]} 24... Bb7 {[%clk 0:00:19.7]} 25. Nxa8 {[%clk 0:01:42.1]}
25... Qxa8 {[%clk 0:00:20.3]} 26. Ra3 {[%clk 0:01:32.8]} 26... Nh4 {[%clk
0:00:18.9]} 27. Bf3 {[%clk 0:01:22.3]} 27... Qa7 {[%clk 0:00:15.4]} 28. Kf1
{[%clk 0:01:18.1]} 28... Qd4 {[%clk 0:00:07.1]} 29. Qc3 {[%clk 0:01:11.2]} 29...
Ngxf3 {[%clk 0:00:06.7]} 30. gxf3 {[%clk 0:01:06.6]} 30... Nxf3 {[%clk
0:00:06.6]} 31. Qxd4 {[%clk 0:00:59.9]} 31... Nxd4 {[%clk 0:00:06.2]} 32. Bb4
{[%clk 0:00:57.9]} 32... Bf8 {[%clk 0:00:04.6]} 33. Rac3 {[%clk 0:00:56]} 33...
Rh7 {[%clk 0:00:04.4]} 34. Rc7 {[%clk 0:00:54.4]} 34... Rh1+ {[%clk 0:00:03.5]}
35. Nxh1 {[%clk 0:00:53.7]} 1-0